fUSD/lending_fUSD_20250623
["ID","MTS","AMOUNT","RATE_DAILY","PERIOD"]
[367263273,1750722643832,-490.0,0.00021917,2]
[367263274,1750722643842,-490.0,0.00021917,2]
[367263275,1750722643851,-490.0,0.00021917,2]
[367263276,1750722643860,-490.0,0.00021917,2]
[367263277,1750722643870,-490.0,0.00021917,2]
[367263278,1750722643879,-490.0,0.00021917,2]
[367263280,1750722643888,-490.0,0.00021917,2]
[367263281,1750722643897,-490.0,0.00021917,2]
[367263282,1750722643907,-874.8,0.00021917,2]
[367263283,1750722643916,-490.0,0.00021917,2]
[367263284,1750722643926,-490.0,0.00021917,2]
[367263285,1750722643935,-737.47,0.00021917,2]
[367263286,1750722643944,-575.57,0.00021917,2]
[367263287,1750722643953,-490.0,0.00021917,2]
[367263288,1750722643962,-490.0,0.00021917,2]
[367263289,1750722643972,-490.0,0.00021917,2]
[367263290,1750722643981,-490.0,0.00021917,2]
[367263291,1750722643990,-490.0,0.00021917,2]
[367263292,1750722643999,-490.0,0.00021917,2]
[367263293,1750722644009,-490.0,0.00021917,2]
[367263294,1750722644018,-490.0,0.00021917,2]
[367263295,1750722644027,-624.47,0.00021917,2]
[367263296,1750722644036,-490.0,0.00021917,2]
[367263297,1750722644045,-490.0,0.00021917,2]
[367263298,1750722644054,-482.99000007,0.00021917,2]
[367263299,1750722644064,-490.0,0.00021917,2]
[367263300,1750722644073,-490.0,0.00021917,2]
[367263301,1750722644083,-490.0,0.00021917,2]
[367263302,1750722644092,-490.0,0.00021917,2]
[367263303,1750722644102,-490.0,0.00021917,2]
[367263304,1750722644111,-505.59,0.00021917,2]
[367263305,1750722644121,-490.0,0.00021917,2]
[367263306,1750722644131,-490.0,0.00021917,2]
[367263307,1750722644140,-664.7,0.00021917,2]
[367263308,1750722644150,-490.0,0.00021917,2]
[367263309,1750722644160,-490.0,0.00021917,2]
[367263310,1750722644169,-490.0,0.00021917,2]
[367263311,1750722644179,-490.0,0.00021917,2]
[367263312,1750722644188,-490.0,0.00021917,2]
[367263313,1750722644197,-490.0,0.00021917,2]
[367263314,1750722644207,-490.0,0.00021917,2]
[367263315,1750722644216,-490.0,0.00021917,2]
[367263316,1750722644226,-490.0,0.00021917,2]
[367263317,1750722644235,-502.1,0.00021917,2]
[367263318,1750722644245,-490.0,0.00021917,2]
[367263319,1750722644254,-490.0,0.00021917,2]
[367263320,1750722644263,-490.0,0.00021917,2]
[367263321,1750722644274,-831.47,0.00021917,2]
[367263322,1750722644284,-494.33573594,0.00021917,2]
[367263323,1750722644294,-490.0,0.00021917,2]
[367263324,1750722644303,-490.0,0.00021917,2]
[367263325,1750722644313,-490.0,0.00021917,2]
[367263326,1750722644323,-490.0,0.00021917,2]
[367263327,1750722644333,-490.0,0.00021917,2]
[367263328,1750722644342,-889.99,0.00021917,2]
[367263329,1750722644352,-490.0,0.00021917,2]
[367263330,1750722644361,-574.36,0.00021917,2]
[367263331,1750722644371,-490.0,0.00021917,2]
[367263332,1750722644381,-490.0,0.00021917,2]
[367263333,1750722644390,-644.55,0.00021917,2]
[367263334,1750722644400,-490.0,0.00021917,2]
[367263335,1750722644410,-891.28,0.00021917,2]
[367263336,1750722644420,-490.0,0.00021917,2]
[367263337,1750722644430,-490.0,0.00021917,2]
[367263338,1750722644439,-1024.42,0.00021917,2]
[367263339,1750722644449,-490.0,0.00021917,2]
[367263340,1750722644458,-490.0,0.00021917,2]
[367263341,1750722644467,-490.0,0.00021917,2]
[367263342,1750722644477,-490.0,0.00021917,2]
[367263343,1750722644486,-490.0,0.00021917,2]
[367263344,1750722644496,-490.0,0.00021917,2]
[367263345,1750722644506,-1009.98,0.00021917,2]
[367263346,1750722644516,-490.0,0.00021917,2]
[367263347,1750722644525,-490.0,0.00021917,2]
[367263348,1750722644535,-490.0,0.00021917,2]
[367263349,1750722644544,-490.0,0.00021917,2]
[367263350,1750722644554,-270.88285879,0.00021917,2]
[367263351,1750722644564,-490.0,0.00021917,2]
[367263352,1750722644573,-490.0,0.00021917,2]
[367263353,1750722644583,-490.0,0.00021917,2]
[367263354,1750722644592,-1140.07,0.00021917,2]
[367263355,1750722644601,-490.0,0.00021917,2]
[367263356,1750722644611,-490.0,0.00021917,2]
[367263357,1750722644621,-490.0,0.00021917,2]
[367263358,1750722644631,-490.0,0.00021917,2]
[367263359,1750722644640,-490.0,0.00021917,2]
[367263360,1750722644650,-809.41,0.00021917,2]
[367263361,1750722644660,-490.0,0.00021917,2]
[367263362,1750722644669,-500.0,0.00021917,2]
[367263363,1750722644678,-500.0,0.00021917,2]
[367263364,1750722644688,-490.0,0.00021917,2]
[367263365,1750722644698,-490.0,0.00021917,2]
[367263366,1750722644707,-490.0,0.00021917,2]
[367263367,1750722644717,-490.0,0.00021917,2]
[367263368,1750722644726,-490.0,0.00021917,2]
[367263369,1750722644736,-490.0,0.00021917,2]
[367263370,1750722644746,-490.0,0.00021917,2]
[367263371,1750722644755,-1220.1,0.00021917,2]
[367263372,1750722644764,-707.74,0.00021917,2]
[367263373,1750722644774,-863.02,0.00021917,2]
[367263374,1750722644783,-490.0,0.00021917,2]
[367263375,1750722644793,-490.0,0.00021917,2]
[367263376,1750722644802,-490.0,0.00021917,2]
[367263377,1750722644812,-490.0,0.00021917,2]
[367263378,1750722644823,-524.66,0.00021917,2]
[367263379,1750722644833,-490.0,0.00021917,2]
[367263380,1750722644843,-490.0,0.00021917,2]
[367263381,1750722644852,-490.0,0.00021917,2]
[367263382,1750722644861,-490.0,0.00021917,2]
[367263383,1750722644872,-490.0,0.00021917,2]
[367263384,1750722644882,-490.0,0.00021917,2]
[367263385,1750722644891,-490.0,0.00021917,2]
[367263386,1750722644903,-490.0,0.00021917,2]
[367263387,1750722644913,-490.0,0.00021917,2]
[367263388,1750722644923,-490.0,0.00021917,2]
[367263389,1750722644932,-490.0,0.00021917,2]
[367263390,1750722644942,-490.0,0.00021917,2]
[367263391,1750722644951,-490.0,0.00021917,2]
[367263392,1750722644961,-490.0,0.00021917,2]
[367263393,1750722644971,-701.07,0.00021917,2]
[367263394,1750722644980,-8500.71,0.00021917,2]
[367263395,1750722644990,-490.0,0.00021917,2]
[367263396,1750722644999,-490.0,0.00021917,2]
[367263397,1750722645008,-490.0,0.00021917,2]
[367263398,1750722645018,-743.33,0.00021917,2]
[367263399,1750722645027,-490.0,0.00021917,2]
[367263400,1750722645220,-490.0,0.00021917,2]
[367263401,1750722645230,-490.0,0.00021917,2]
[367263402,1750722645239,-490.0,0.00021917,2]
[367263403,1750722645248,-490.0,0.00021917,2]
[367263404,1750722645258,-490.0,0.00021917,2]
[367263405,1750722645267,-490.0,0.00021917,2]
[367263406,1750722645276,-490.0,0.00021917,2]
[367263407,1750722645286,-490.0,0.00021917,2]
[367263408,1750722645295,-490.0,0.00021917,2]
[367263409,1750722645305,-490.0,0.00021917,2]
[367263410,1750722645315,-490.0,0.00021917,2]
[367263411,1750722645324,-490.0,0.00021917,2]
[367263412,1750722645334,-866.14,0.00021917,2]
[367263413,1750722645343,-490.0,0.00021917,2]
[367263414,1750722645353,-726.9,0.00021917,2]
[367263415,1750722645364,-490.0,0.00021917,2]
[367263416,1750722645374,-490.0,0.00021917,2]
[367263417,1750722645384,-490.0,0.00021917,2]
[367263418,1750722645393,-658.73,0.00021917,2]
[367263419,1750722645403,-709.26,0.00021917,2]
[367263420,1750722645412,-490.0,0.00021917,2]
[367263421,1750722645422,-490.0,0.00021917,2]
[367263422,1750722645431,-490.0,0.00021917,2]
[367263423,1750722645442,-490.0,0.00021917,2]
[367263424,1750722645451,-490.0,0.00021917,2]
[367263425,1750722645461,-532.05293533,0.00021917,2]
[367263426,1750722645471,-583.59043602,0.00021917,2]
[367263427,1750722645481,-490.0,0.00021917,2]
[367263428,1750722645491,-490.0,0.00021917,2]
[367263429,1750722645501,-490.0,0.00021917,2]
[367263430,1750722645511,-520.15,0.00021917,2]
[367263431,1750722645522,-668.39,0.00021917,2]
[367263432,1750722645532,-490.0,0.00021917,2]
[367263433,1750722645542,-490.0,0.00021917,2]
[367263434,1750722645552,-890.8,0.00021917,2]
[367263435,1750722645562,-490.0,0.00021917,2]
[367263436,1750722645572,-490.0,0.00021917,2]
[367263437,1750722645581,-1817.04,0.00021917,2]
[367263438,1750722645591,-238.14493284,0.00021917,2]
[367263439,1750722645602,-490.0,0.00021917,2]
[367263440,1750722645611,-490.0,0.00021917,2]
[367263441,1750722645621,-490.0,0.00021917,2]
[367263442,1750722645630,-490.0,0.00021917,2]
[367263443,1750722645640,-490.0,0.00021917,2]
[367263444,1750722645649,-490.0,0.00021917,2]
[367263445,1750722645659,-608.99,0.00021917,2]
[367263446,1750722645669,-490.0,0.00021917,2]
[367263447,1750722645679,-490.0,0.00021917,2]
[367263448,1750722645689,-490.0,0.00021917,2]
[367263449,1750722645699,-490.0,0.00021917,2]
[367263450,1750722645709,-611.24,0.00021917,2]
[367263451,1750722645718,-660.76,0.00021917,2]
[367263452,1750722645728,-490.0,0.00021917,2]
[367263453,1750722645738,-889.57,0.00021917,2]
[367263454,1750722645748,-852.61,0.00021917,2]
[367263455,1750722645757,-490.0,0.00021917,2]
[367263456,1750722645767,-639.15,0.00021917,2]
[367263457,1750722645776,-490.0,0.00021917,2]
[367263458,1750722645786,-490.0,0.00021917,2]
[367263459,1750722645796,-578.12,0.00021917,2]
[367263460,1750722645805,-493.68795833,0.00021917,2]
[367263461,1750722645814,-490.0,0.00021917,2]
[367263462,1750722645826,-490.0,0.00021917,2]
[367263464,1750722645836,-490.0,0.00021917,2]
[367263465,1750722645845,-725.63,0.00021917,2]
[367263466,1750722645855,-1036.14,0.00021917,2]
[367263467,1750722645866,-490.0,0.00021917,2]
[367263468,1750722645875,-422.32794486,0.00021917,2]
[367263469,1750722645885,-490.0,0.00021917,2]
[367263470,1750722645894,-490.0,0.00021917,2]
[367263471,1750722645905,-490.0,0.00021917,2]
[367263472,1750722645915,-490.0,0.00021917,2]
[367263473,1750722645924,-250.0,0.00021917,2]
[367263474,1750722645933,-490.0,0.00021917,2]
[367263476,1750722645943,-490.0,0.00021917,2]
[367263477,1750722645952,-490.0,0.00021917,2]
[367263478,1750722645962,-490.0,0.00021917,2]
[367263479,1750722645971,-687.15,0.00021917,2]
[367263480,1750722645980,-2016.76,0.00021917,2]
[367263481,1750722645989,-3451.37,0.00021917,2]
[367263482,1750722645999,-490.0,0.00021917,2]
[367263483,1750722646008,-490.0,0.00021917,2]
[367263484,1750722646018,-490.0,0.00021917,2]
[367263485,1750722646027,-490.0,0.00021917,2]
[367263486,1750722646037,-490.0,0.00021917,2]
[367263487,1750722646047,-1486.84,0.00021917,2]
[367263488,1750722646056,-490.0,0.00021917,2]
[367263489,1750722646066,-490.0,0.00021917,2]
[367263490,1750722646075,-490.0,0.00021917,2]
[367263491,1750722646085,-490.0,0.00021917,2]
[367263492,1750722646095,-490.0,0.00021917,2]
[367263493,1750722646105,-2600.88,0.00021917,2]
[367263494,1750722646115,-988.75,0.00021917,2]
[367263495,1750722646124,-490.0,0.00021917,2]
[367263496,1750722646134,-495.46,0.00021917,2]
[367263497,1750722646145,-490.0,0.00021917,2]
[367263498,1750722646155,-490.0,0.00021917,2]
[367263499,1750722646165,-490.0,0.00021917,2]
[367263500,1750722646175,-490.0,0.00021917,2]
[367263501,1750722646184,-852.3,0.00021917,2]
[367263502,1750722646194,-490.0,0.00021917,2]
[367263503,1750722646203,-891.95,0.00021917,2]
[367263504,1750722646213,-490.0,0.00021917,2]
[367263505,1750722646222,-490.0,0.00021917,2]
[367263506,1750722646232,-543.07,0.00021917,2]
[367263507,1750722646241,-490.0,0.00021917,2]
[367263508,1750722646252,-490.0,0.00021917,2]
[367263509,1750722646262,-300.0,0.00021917,2]
[367263510,1750722646271,-490.0,0.00021917,2]
[367263511,1750722646281,-494.31,0.00021917,2]
[367263512,1750722646291,-533.43,0.00021917,2]
[367263513,1750722646300,-535.75,0.00021917,2]
[367263514,1750722646309,-490.0,0.00021917,2]
[367263515,1750722646319,-490.0,0.00021917,2]
[367263516,1750722646328,-490.0,0.00021917,2]
[367263517,1750722646338,-685.3,0.00021917,2]
[367263518,1750722646348,-490.0,0.00021917,2]
[367263519,1750722646358,-490.0,0.00021917,2]
[367263520,1750722646368,-490.0,0.00021917,2]
[367263521,1750722646378,-1059.99,0.00021917,2]
[367263522,1750722646388,-490.0,0.00021917,2]
[367263523,1750722646397,-1239.33,0.00021917,2]
[367263524,1750722646408,-490.0,0.00021917,2]
[367263525,1750722646417,-1225.41,0.00021917,2]
[367263526,1750722646427,-1859.87,0.00021917,2]
[367263527,1750722646436,-490.0,0.00021917,2]
[367263528,1750722646445,-747.66,0.00021917,2]
[367263529,1750722646455,-490.0,0.00021917,2]
[367263530,1750722646465,-490.0,0.00021917,2]
[367263531,1750722646474,-3515.34,0.00021917,2]
[367263532,1750722646484,-490.0,0.00021917,2]
[367263533,1750722646493,-644.73,0.00021917,2]
[367263534,1750722646503,-490.0,0.00021917,2]
[367263535,1750722646513,-490.0,0.00021917,2]
[367263536,1750722646523,-1516.29,0.00021917,2]
[367263537,1750722646534,-490.0,0.00021917,2]
[367263538,1750722646543,-2258.43,0.00021917,2]
[367263539,1750722646553,-1049.17,0.00021917,2]
[367263540,1750722646563,-490.0,0.00021917,2]
[367263541,1750722646572,-588.18,0.00021917,2]
[367263542,1750722646582,-490.0,0.00021917,2]
[367263543,1750722646591,-490.0,0.00021917,2]
[367263544,1750722646600,-490.0,0.00021917,2]
[367263545,1750722646610,-490.0,0.00021917,2]
[367263546,1750722646620,-500.0,0.00021917,2]
[367263547,1750722646629,-500.0,0.00021917,2]
[367263548,1750722646638,-68697.11,0.00021917,2]
[367263549,1750722646647,-490.0,0.00021917,2]
[367263550,1750722646657,-936.03,0.00021917,2]
[367263551,1750722646666,-490.0,0.00021917,2]
[367263552,1750722646676,-490.0,0.00021917,2]
[367263553,1750722646685,-1139.14,0.00021917,2]
[367263554,1750722646695,-490.0,0.00021917,2]
[367263555,1750722646706,-490.0,0.00021917,2]
[367263556,1750722646716,-647.9,0.00021917,2]
[367263557,1750722646726,-803.72,0.00021917,2]
[367263558,1750722646736,-516.62,0.00021917,2]
[367263559,1750722646748,-490.0,0.00021917,2]
[367263560,1750722646759,-490.0,0.00021917,2]
[367263561,1750722646770,-490.0,0.00021917,2]
[367263562,1750722646780,-500.0,0.00021917,2]
[367263563,1750722646790,-500.0,0.00021917,2]
[367263564,1750722646800,-1410.85,0.00021917,2]
[367263565,1750722646810,-490.0,0.00021917,2]
[367263566,1750722646821,-1134.51,0.00021917,2]
[367263567,1750722646834,-498.27,0.00021917,2]
[367263568,1750722646844,-527.41,0.00021917,2]
[367263569,1750722646853,-490.0,0.00021917,2]
[367263570,1750722646864,-971.99,0.00021917,2]
[367263571,1750722646874,-490.0,0.00021917,2]
[367263572,1750722646883,-490.0,0.00021917,2]
[367263573,1750722646892,-613.92,0.00021917,2]
[367263574,1750722646902,-490.0,0.00021917,2]
[367263575,1750722646912,-490.0,0.00021917,2]
[367263576,1750722646922,-490.0,0.00021917,2]
[367263577,1750722646932,-490.0,0.00021917,2]
[367263578,1750722646941,-854.15,0.00021917,2]
[367263579,1750722646951,-490.0,0.00021917,2]
[367263580,1750722646960,-490.0,0.00021917,2]
[367263581,1750722646970,-490.0,0.00021917,2]
[367263582,1750722646980,-1578.51,0.00021917,2]
[367263583,1750722646989,-502.06,0.00021917,2]
[367263584,1750722646999,-1004.78,0.00021917,2]
[367263585,1750722647008,-490.0,0.00021917,2]
[367263586,1750722647018,-490.0,0.00021917,2]
[367263587,1750722647028,-722.59,0.00021917,2]
[367263588,1750722647038,-1149.68,0.00021917,2]
[367263589,1750722647048,-490.0,0.00021917,2]
[367263590,1750722647057,-490.0,0.00021917,2]
[367263591,1750722647067,-490.0,0.00021917,2]
[367263592,1750722647076,-1046.97,0.00021917,2]
[367263593,1750722647085,-490.0,0.00021917,2]
[367263594,1750722647095,-490.0,0.00021917,2]
[367263595,1750722647104,-490.0,0.00021917,2]
[367263596,1750722647115,-490.0,0.00021917,2]
[367263597,1750722647125,-490.0,0.00021917,2]
[367263598,1750722647134,-490.0,0.00021917,2]
[367263599,1750722647144,-490.0,0.00021917,2]
[367263600,1750722647153,-490.0,0.00021917,2]
[367263601,1750722647164,-490.0,0.00021917,2]
[367263602,1750722647173,-581.05,0.00021917,2]
[367263603,1750722647183,-490.0,0.00021917,2]
[367263604,1750722647193,-1200.68,0.00021917,2]
[367263605,1750722647203,-490.0,0.00021917,2]
[367263606,1750722647213,-4560.06,0.00021917,2]
[367263607,1750722647222,-694.62,0.00021917,2]
[367263608,1750722647233,-4560.06,0.00021917,2]
[367263609,1750722647242,-500.0,0.00021917,2]
[367263610,1750722647252,-4560.06,0.00021917,2]
[367263611,1750722647261,-490.0,0.00021917,2]
[367263612,1750722647271,-4672.05,0.00021917,2]
[367263613,1750722647280,-490.0,0.00021917,2]
[367263614,1750722647290,-507.86,0.00021917,2]
[367263615,1750722647299,-684.55,0.00021917,2]
[367263616,1750722647309,-490.0,0.00021917,2]
[367263617,1750722647318,-490.0,0.00021917,2]
[367263618,1750722647328,-490.0,0.00021917,2]
[367263619,1750722647338,-490.0,0.00021917,2]
[367263620,1750722647347,-1066.19,0.00021917,2]
[367263621,1750722647356,-219.21710717,0.00021917,2]
[367263622,1750722647368,-490.0,0.00021917,2]
[367263623,1750722647377,-4445.32,0.00021917,2]
[367263624,1750722647387,-1782.62,0.00021917,2]
[367263625,1750722647396,-490.0,0.00021917,2]
[367263626,1750722647406,-490.0,0.00021917,2]
[367263627,1750722647415,-490.0,0.00021917,2]
[367263628,1750722647425,-490.0,0.00021917,2]
[367263629,1750722647434,-490.0,0.00021917,2]
[367263630,1750722647443,-490.0,0.00021917,2]
[367263631,1750722647453,-869.16,0.00021917,2]
[367263632,1750722647462,-490.0,0.00021917,2]
[367263633,1750722647472,-490.0,0.00021917,2]
[367263634,1750722647482,-270.0974145,0.00021917,2]
[367263635,1750722647491,-993.54,0.00021917,2]
[367263636,1750722647500,-490.0,0.00021917,2]
[367263637,1750722647510,-490.0,0.00021917,2]
[367263638,1750722647519,-490.0,0.00021917,2]
[367263639,1750722647529,-490.0,0.00021917,2]
[367263640,1750722647539,-490.0,0.00021917,2]
[367263641,1750722647548,-490.0,0.00021917,2]
[367263642,1750722647558,-1775.91,0.00021917,2]
[367263643,1750722647568,-490.0,0.00021917,2]
[367263644,1750722647578,-490.0,0.00021917,2]
[367263645,1750722647588,-490.0,0.00021917,2]
[367263646,1750722647597,-255.14161773,0.00021917,2]
[367263647,1750722647607,-490.0,0.00021917,2]
[367263648,1750722647617,-438.64637271,0.00021917,2]
[367263649,1750722647627,-5169.32,0.00021917,2]
[367263650,1750722647636,-490.0,0.00021917,2]
[367263651,1750722647645,-490.0,0.00021917,2]
[367263652,1750722647655,-490.0,0.00021917,2]
[367263653,1750722647664,-775.96,0.00021917,2]
[367263654,1750722647673,-490.0,0.00021917,2]
[367263655,1750722647683,-490.0,0.00021917,2]
[367263656,1750722647754,-641.17,0.00021917,2]
[367263657,1750722647763,-490.0,0.00021917,2]
[367263658,1750722647772,-1008.32,0.00021917,2]
[367263659,1750722647782,-983.36,0.00021917,2]
[367263660,1750722647791,-490.0,0.00021917,2]
[367263661,1750722647800,-490.0,0.00021917,2]
[367263662,1750722647810,-490.0,0.00021917,2]
[367263663,1750722647820,-490.0,0.00021917,2]
[367263664,1750722647832,-490.0,0.00021917,2]
[367263665,1750722647841,-500.0,0.00021917,2]
[367263666,1750722647850,-490.0,0.00021917,2]
[367263667,1750722647859,-1881.06,0.00021917,2]
[367263668,1750722647870,-829.17,0.00021917,2]
[367263669,1750722647879,-1812.42,0.00021917,2]
[367263670,1750722647888,-490.0,0.00021917,2]
[367263671,1750722647897,-490.0,0.00021917,2]
[367263672,1750722647907,-490.0,0.00021917,2]
[367263673,1750722647916,-834.28,0.00021917,2]
[367263674,1750722647926,-490.0,0.00021917,2]
[367263675,1750722647935,-490.0,0.00021917,2]
[367263676,1750722647944,-490.0,0.00021917,2]
[367263677,1750722647953,-490.0,0.00021917,2]
[367263678,1750722647962,-490.0,0.00021917,2]
[367263679,1750722647971,-704.39,0.00021917,2]
[367263680,1750722647980,-240.99165791,0.00021917,2]
[367263681,1750722647990,-622.57,0.00021917,2]
[367263682,1750722647999,-857.91,0.00021917,2]
[367263683,1750722648008,-1188.59,0.00021917,2]
[367263684,1750722648017,-495.31,0.00021917,2]
[367263685,1750722648026,-477.70147511,0.00021917,2]
[367263686,1750722648035,-516.46303286,0.00021917,2]
[367263687,1750722648044,-490.0,0.00021917,2]
[367263688,1750722648053,-798.05,0.00021917,2]
[367263689,1750722648063,-2746.66,0.00021917,2]
[367263690,1750722648071,-490.0,0.00021917,2]
[367263691,1750722648080,-490.0,0.00021917,2]
[367263692,1750722648090,-490.0,0.00021917,2]
[367263693,1750722648099,-490.0,0.00021917,2]
[367263694,1750722648108,-1013.71,0.00021917,2]
[367263696,1750722648119,-490.0,0.00021917,2]
[367263697,1750722648128,-490.0,0.00021917,2]
[367263698,1750722648137,-490.0,0.00021917,2]
[367263699,1750722648146,-490.0,0.00021917,2]
[367263700,1750722648155,-436.56566842,0.00021917,2]
[367263701,1750722648164,-490.0,0.00021917,2]
[367263702,1750722648174,-769.79,0.00021917,2]
[367263703,1750722648184,-1102.34,0.00021917,2]
[367263704,1750722648194,-490.0,0.00021917,2]
[367263705,1750722648203,-490.0,0.00021917,2]
[367263706,1750722648212,-2843.97,0.00021917,2]
[367263707,1750722648222,-490.0,0.00021917,2]
[367263708,1750722648231,-490.0,0.00021917,2]
[367263709,1750722648240,-793.99,0.00021917,2]
[367263710,1750722648249,-700.64,0.00021917,2]
[367263711,1750722648258,-490.0,0.00021917,2]
[367263712,1750722648268,-490.0,0.00021917,2]
[367263713,1750722648277,-851.74,0.00021917,2]
[367263714,1750722648286,-359.85708488,0.00021917,2]
[367263715,1750722648296,-386.68370671,0.00021917,2]
[367263716,1750722648305,-21749.08,0.00021917,2]
[367263717,1750722648315,-490.0,0.00021917,2]
[367263718,1750722648325,-490.0,0.00021917,2]
[367263719,1750722648334,-490.0,0.00021917,2]
[367263720,1750722648344,-490.0,0.00021917,2]
[367263721,1750722648354,-490.0,0.00021917,2]
[367263722,1750722648363,-490.0,0.00021917,2]
[367263723,1750722648373,-490.0,0.00021917,2]
[367263724,1750722648382,-564.01847303,0.00021917,2]
[367263725,1750722648392,-490.0,0.00021917,2]
[367263726,1750722648401,-490.0,0.00021917,2]
[367263727,1750722648411,-490.0,0.00021917,2]
[367263728,1750722648420,-490.0,0.00021917,2]
[367263729,1750722648430,-490.0,0.00021917,2]
[367263730,1750722648439,-985.74,0.00021917,2]
[367263731,1750722648449,-702.04,0.00021917,2]
[367263732,1750722648458,-576.52,0.00021917,2]
[367263733,1750722648468,-490.0,0.00021917,2]
[367263734,1750722648477,-490.0,0.00021917,2]
[367263735,1750722648487,-736.73,0.00021917,2]
[367263736,1750722648496,-490.0,0.00021917,2]
[367263737,1750722648505,-1301.35,0.00021917,2]
[367263738,1750722648515,-490.0,0.00021917,2]
[367263739,1750722648524,-1417.45,0.00021917,2]
[367263740,1750722648534,-519.34,0.00021917,2]
[367263741,1750722648543,-490.0,0.00021917,2]
[367263742,1750722648553,-490.0,0.00021917,2]
[367263743,1750722648563,-498.78,0.00021917,2]
[367263744,1750722648573,-490.0,0.00021917,2]
[367263745,1750722648582,-490.0,0.00021917,2]
[367263746,1750722648591,-490.0,0.00021917,2]
[367263747,1750722648600,-490.0,0.00021917,2]
[367263748,1750722648609,-490.0,0.00021917,2]
[367263749,1750722648620,-8799.43,0.00021917,2]
[367263750,1750722648629,-3452.51,0.00021917,2]
[367263751,1750722648639,-490.0,0.00021917,2]
[367263752,1750722648648,-642.9,0.00021917,2]
[367263753,1750722648657,-748.1,0.00021917,2]
[367263754,1750722648667,-490.0,0.00021917,2]
[367263755,1750722648676,-662.96,0.00021917,2]
[367263756,1750722648685,-600.19,0.00021917,2]
[367263757,1750722648695,-730.64,0.00021917,2]
[367263758,1750722648704,-490.0,0.00021917,2]
[367263759,1750722648713,-490.0,0.00021917,2]
[367263760,1750722648722,-490.0,0.00021917,2]
[367263761,1750722648732,-639.41,0.00021917,2]
[367263762,1750722648741,-490.0,0.00021917,2]
[367263763,1750722648750,-154.03612538,0.00021917,2]
[367263764,1750722648759,-490.0,0.00021917,2]
[367263765,1750722648769,-490.0,0.00021917,2]
[367263766,1750722648779,-490.0,0.00021917,2]
[367263767,1750722648788,-1130.36,0.00021917,2]
[367263768,1750722648798,-500.0,0.00021917,2]
[367263769,1750722648807,-500.0,0.00021917,2]
[367263770,1750722648817,-1224.48,0.00021917,2]
[367263771,1750722648829,-490.0,0.00021917,2]
[367263772,1750722648838,-1249.16,0.00021917,2]
[367263773,1750722648847,-500.0,0.00021917,2]
[367263774,1750722648858,-490.0,0.00021917,2]
[367263775,1750722648868,-490.0,0.00021917,2]
[367263776,1750722648877,-490.0,0.00021917,2]